[Event "Titled Tuesday Blitz November 01 Late 2022"]
[White "Van Osch, Mees"]
[Black "Saucey, Michel"]
[WhiteFideId "1035967"]
[BlackFideId "601845"]
[WhiteElo "2324"]
[BlackElo "2253"]
[Result "1-0"]
[Round "09"]
[TimeControl "180+1"]
[Date "2022.11.02"]
[WhiteClock "0:00:51"]
[BlackClock "0:00:03"]

1. e4 {[%clk 0:03:00]}  c5 {[%clk 0:02:59]} 2. Nf3 {[%clk 0:02:53]}  e6 {[%clk 0:02:59]} 3. b3 {[%clk 0:02:51]}  Nc6 {[%clk 0:02:58]} 4. Bb2 {[%clk 0:02:51]}  a6 {[%clk 0:02:57]} 5. Bd3 {[%clk 0:02:42]}  d5 {[%clk 0:02:42]} 6. O-O {[%clk 0:02:40]}  Nf6 {[%clk 0:02:42]} 7. exd5 {[%clk 0:02:36]}  exd5 {[%clk 0:02:41]} 8. Re1+ {[%clk 0:02:33]}  Be7 {[%clk 0:02:36]} 9. Bxf6 {[%clk 0:02:33]}  gxf6 {[%clk 0:02:36]} 10. Nc3 {[%clk 0:02:32]}  Be6 {[%clk 0:02:35]} 11. Ne2 {[%clk 0:02:25]}  Qc7 {[%clk 0:02:32]} 12. Ng3 {[%clk 0:02:22]}  O-O-O {[%clk 0:02:25]} 13. Bf5 {[%clk 0:02:17]}  Ne5 {[%clk 0:02:19]} 14. d4 {[%clk 0:02:08]}  Nxf3+ {[%clk 0:02:07]} 15. Qxf3 {[%clk 0:02:09]}  cxd4 {[%clk 0:02:00]} 16. Bxe6+ {[%clk 0:02:04]}  fxe6 {[%clk 0:02:00]} 17. Rxe6 {[%clk 0:02:05]}  Kb8 {[%clk 0:01:55]} 18. Nf5 {[%clk 0:02:01]}  Bb4 {[%clk 0:01:37]} 19. Qd3 {[%clk 0:01:48]}  Qc3 {[%clk 0:01:27]} 20. Qxc3 {[%clk 0:01:43]}  Bxc3 {[%clk 0:01:26]} 21. Rd1 {[%clk 0:01:41]}  Rhe8 {[%clk 0:01:24]} 22. Rxe8 {[%clk 0:01:35]}  Rxe8 {[%clk 0:01:23]} 23. Kf1 {[%clk 0:01:36]}  Kc7 {[%clk 0:01:07]} 24. Nxd4 {[%clk 0:01:34]}  b5 {[%clk 0:00:55]} 25. Ne2 {[%clk 0:01:30]}  d4 {[%clk 0:00:36]} 26. Nxd4 {[%clk 0:01:27]}  Kb6 {[%clk 0:00:30]} 27. Ne2 {[%clk 0:01:25]}  Bb4 {[%clk 0:00:28]} 28. c3 {[%clk 0:01:15]}  Ba3 {[%clk 0:00:25]} 29. b4 {[%clk 0:01:09]}  Re6 {[%clk 0:00:20]} 30. Nd4 {[%clk 0:01:05]}  Re4 {[%clk 0:00:12]} 31. Rd3 {[%clk 0:00:59]}  Bb2 {[%clk 0:00:10]} 32. f3 {[%clk 0:00:58]}  Re5 {[%clk 0:00:06]} 33. Nb3 {[%clk 0:00:58]}  Re6 {[%clk 0:00:03]} 34. Nc5 {[%clk 0:00:54]}  Rc6 {[%clk 0:00:03]} 35. Rd7 {[%clk 0:00:51]} 1-0


[Site "https://www.chess.com"]

[Event "Titled Tuesday Blitz November 01 Late 2022"]
[White "Vusatiuk, Vladimir"]
[Black "Melkumyan, Hrant"]
[WhiteFideId "14118610"]
[BlackFideId "13302485"]
[WhiteElo "2600"]
[BlackElo "2982"]
[Result "1-0"]
[Round "09"]
[TimeControl "180+1"]
[Date "2022.11.01"]
[WhiteClock "0:00:48"]
[BlackClock "0:00:15"]

1. Nf3 {[%clk 0:03:00]}  c5 {[%clk 0:02:59]} 2. e4 {[%clk 0:02:57]}  Nc6 {[%clk 0:02:58]} 3. d4 {[%clk 0:02:54]}  cxd4 {[%clk 0:02:58]} 4. Nxd4 {[%clk 0:02:55]}  e5 {[%clk 0:02:58]} 5. Nb5 {[%clk 0:02:55]}  d6 {[%clk 0:02:59]} 6. c4 {[%clk 0:02:52]}  g6 {[%clk 0:02:57]} 7. Be2 {[%clk 0:02:48]}  a6 {[%clk 0:02:56]} 8. N5c3 {[%clk 0:02:47]}  Bg7 {[%clk 0:02:55]} 9. Nd5 {[%clk 0:02:45]}  Nge7 {[%clk 0:02:52]} 10. Bg5 {[%clk 0:02:43]}  h6 {[%clk 0:02:52]} 11. Bxe7 {[%clk 0:02:40]}  Nxe7 {[%clk 0:02:51]} 12. Nxe7 {[%clk 0:02:37]}  Qxe7 {[%clk 0:02:52]} 13. Nc3 {[%clk 0:02:38]}  O-O {[%clk 0:02:52]} 14. O-O {[%clk 0:02:35]}  Be6 {[%clk 0:02:51]} 15. Nd5 {[%clk 0:02:34]}  Qd8 {[%clk 0:02:49]} 16. b3 {[%clk 0:02:31]}  f5 {[%clk 0:02:45]} 17. exf5 {[%clk 0:02:23]}  gxf5 {[%clk 0:02:41]} 18. Qd2 {[%clk 0:02:19]}  f4 {[%clk 0:02:30]} 19. Rad1 {[%clk 0:02:14]}  e4 {[%clk 0:02:27]} 20. Nxf4 {[%clk 0:02:11]}  Bf7 {[%clk 0:02:15]} 21. g3 {[%clk 0:02:09]}  Be5 {[%clk 0:02:14]} 22. h4 {[%clk 0:02:06]}  Qf6 {[%clk 0:02:08]} 23. Nd5 {[%clk 0:02:03]}  Qg7 {[%clk 0:01:56]} 24. Ne7+ {[%clk 0:02:03]}  Kh7 {[%clk 0:01:56]} 25. Nf5 {[%clk 0:02:00]}  Qg6 {[%clk 0:01:49]} 26. Ne3 {[%clk 0:01:51]}  Be6 {[%clk 0:01:43]} 27. Ng2 {[%clk 0:01:46]}  Rf6 {[%clk 0:01:36]} 28. h5 {[%clk 0:01:42]}  Qf7 {[%clk 0:01:31]} 29. Qe3 {[%clk 0:01:42]}  Rg8 {[%clk 0:01:04]} 30. Qxe4+ {[%clk 0:01:39]}  Kh8 {[%clk 0:01:04]} 31. Nh4 {[%clk 0:01:18]}  Bf5 {[%clk 0:00:40]} 32. Nxf5 {[%clk 0:01:15]}  Rxf5 {[%clk 0:00:41]} 33. c5 {[%clk 0:01:07]}  Qg7 {[%clk 0:00:15]} 34. Qxf5 {[%clk 0:01:03]}  Bxg3 {[%clk 0:00:15]} 35. Qg6 {[%clk 0:00:47]}  Qf8 {[%clk 0:00:15]} 36. fxg3 {[%clk 0:00:48]} 1-0


[Site "https://www.chess.com"]

[Event "Titled Tuesday Blitz November 01 Late 2022"]
[White "Weetik, Vjacheslav"]
[Black "Souleidis, Georgios"]
[WhiteFideId "4153472"]
[BlackFideId "4206827"]
[WhiteElo "2469"]
[BlackElo "2401"]
[Result "1-0"]
[Round "09"]
[TimeControl "180+1"]
[Date "2022.11.01"]
[WhiteClock "0:00:09"]
[BlackClock "0:00:01"]

1. d4 {[%clk 0:02:59]}  d5 {[%clk 0:02:59]} 2. c4 {[%clk 0:02:59]}  e6 {[%clk 0:02:59]} 3. Nf3 {[%clk 0:02:57]}  dxc4 {[%clk 0:02:58]} 4. e4 {[%clk 0:02:52]}  Nf6 {[%clk 0:02:56]} 5. Nc3 {[%clk 0:02:49]}  Bb4 {[%clk 0:02:50]} 6. Bxc4 {[%clk 0:02:49]}  Nxe4 {[%clk 0:02:48]} 7. O-O {[%clk 0:02:49]}  Nf6 {[%clk 0:02:39]} 8. Qa4+ {[%clk 0:02:46]}  Nc6 {[%clk 0:02:39]} 9. Ne5 {[%clk 0:02:45]}  Bxc3 {[%clk 0:02:24]} 10. Nxc6 {[%clk 0:02:22]}  bxc6 {[%clk 0:02:24]} 11. bxc3 {[%clk 0:02:19]}  O-O {[%clk 0:02:22]} 12. Qxc6 {[%clk 0:02:10]}  Bd7 {[%clk 0:02:21]} 13. Qf3 {[%clk 0:02:03]}  c5 {[%clk 0:02:12]} 14. Bg5 {[%clk 0:02:01]}  cxd4 {[%clk 0:02:10]} 15. cxd4 {[%clk 0:01:50]}  Rc8 {[%clk 0:02:10]} 16. Bd3 {[%clk 0:01:36]}  h6 {[%clk 0:02:10]} 17. Be3 {[%clk 0:01:18]}  Bc6 {[%clk 0:01:53]} 18. Qg3 {[%clk 0:01:09]}  Nh5 {[%clk 0:01:43]} 19. Qh3 {[%clk 0:01:04]}  Nf6 {[%clk 0:01:39]} 20. Rad1 {[%clk 0:00:59]}  Qd5 {[%clk 0:01:31]} 21. f3 {[%clk 0:00:58]}  Qh5 {[%clk 0:01:21]} 22. Qg3 {[%clk 0:00:49]}  Bd5 {[%clk 0:01:11]} 23. a4 {[%clk 0:00:41]}  Bc4 {[%clk 0:01:10]} 24. Bf4 {[%clk 0:00:31]}  Bxd3 {[%clk 0:01:08]} 25. Rxd3 {[%clk 0:00:32]}  Nd5 {[%clk 0:01:05]} 26. Be5 {[%clk 0:00:29]}  Qg5 {[%clk 0:00:55]} 27. Qf2 {[%clk 0:00:22]}  Rc1 {[%clk 0:00:53]} 28. h4 {[%clk 0:00:20]}  Rxf1+ {[%clk 0:00:50]} 29. Kxf1 {[%clk 0:00:20]}  Qf5 {[%clk 0:00:48]} 30. Rb3 {[%clk 0:00:17]}  Rc8 {[%clk 0:00:47]} 31. Kg1 {[%clk 0:00:18]}  Rc2 {[%clk 0:00:26]} 32. Qg3 {[%clk 0:00:18]}  f6 {[%clk 0:00:26]} 33. Rb7 {[%clk 0:00:13]}  Qh7 {[%clk 0:00:09]} 34. Bxf6 {[%clk 0:00:10]}  Rc1+ {[%clk 0:00:08]} 35. Kh2 {[%clk 0:00:10]}  Nxf6 {[%clk 0:00:01]} 36. Qb8+ {[%clk 0:00:09]} 1-0


[Site "https://www.chess.com"]

[Event "Titled Tuesday Blitz November 01 Late 2022"]
[White "Wieczorek, Zbigniew"]
[Black "Annaberdiyev, Babageldi"]
[WhiteFideId "1102001"]
[BlackFideId "14000385"]
[WhiteElo "2312"]
[BlackElo "2332"]
[Result "1/2-1/2"]
[Round "09"]
[TimeControl "180+1"]
[Date "2022.11.02"]
[WhiteClock "0:00:20"]
[BlackClock "0:02:00"]

1. Nf3 {[%clk 0:03:00]}  c5 {[%clk 0:02:59]} 2. e4 {[%clk 0:02:59]}  d6 {[%clk 0:02:55]} 3. Bb5+ {[%clk 0:02:59]}  Bd7 {[%clk 0:02:55]} 4. c4 {[%clk 0:02:59]}  a6 {[%clk 0:02:54]} 5. Bxd7+ {[%clk 0:02:59]}  Nxd7 {[%clk 0:02:54]} 6. Nc3 {[%clk 0:02:59]}  g6 {[%clk 0:02:41]} 7. d4 {[%clk 0:02:57]}  Bg7 {[%clk 0:02:41]} 8. d5 {[%clk 0:02:55]}  Ngf6 {[%clk 0:02:37]} 9. O-O {[%clk 0:02:54]}  O-O {[%clk 0:02:38]} 10. Re1 {[%clk 0:02:53]}  Ng4 {[%clk 0:02:34]} 11. Bg5 {[%clk 0:02:48]}  h6 {[%clk 0:02:30]} 12. Bf4 {[%clk 0:02:45]}  b5 {[%clk 0:02:28]} 13. cxb5 {[%clk 0:02:15]}  axb5 {[%clk 0:02:29]} 14. Nxb5 {[%clk 0:02:09]}  Bxb2 {[%clk 0:02:24]} 15. Rb1 {[%clk 0:01:58]}  Bg7 {[%clk 0:02:24]} 16. a4 {[%clk 0:01:28]}  Nge5 {[%clk 0:02:23]} 17. Nxe5 {[%clk 0:01:02]}  Nxe5 {[%clk 0:02:24]} 18. Bxe5 {[%clk 0:01:02]}  Bxe5 {[%clk 0:02:23]} 19. Na3 {[%clk 0:00:52]}  Bg7 {[%clk 0:02:17]} 20. Nc4 {[%clk 0:00:49]}  Qe8 {[%clk 0:02:16]} 21. a5 {[%clk 0:00:44]}  Bc3 {[%clk 0:02:13]} 22. Re3 {[%clk 0:00:38]}  Bxa5 {[%clk 0:02:12]} 23. Rh3 {[%clk 0:00:37]}  Bc7 {[%clk 0:02:09]} 24. Qc1 {[%clk 0:00:29]}  h5 {[%clk 0:02:06]} 25. Rxh5 {[%clk 0:00:27]}  gxh5 {[%clk 0:02:02]} 26. Qg5+ {[%clk 0:00:26]}  Kh7 {[%clk 0:02:02]} 27. Qxh5+ {[%clk 0:00:25]}  Kg7 {[%clk 0:02:01]} 28. Qg5+ {[%clk 0:00:22]}  Kh7 {[%clk 0:02:00]} 29. Qh5+ {[%clk 0:00:21]}  Kg7 {[%clk 0:02:00]} 30. Qg5+ {[%clk 0:00:20]}  Kh7 {[%clk 0:02:00]} 31. Qh5+ {[%clk 0:00:20]} 1/2-1/2


[Site "https://www.chess.com"]

[Event "Titled Tuesday Blitz November 01 Late 2022"]
[White "Zanette, Edgard Vinicius"]
[Black "Jaskolka, Tomasz"]
[WhiteFideId "2109263"]
[BlackFideId "1170791"]
[WhiteElo "2236"]
[BlackElo "2126"]
[Result "0-1"]
[Round "09"]
[TimeControl "180+1"]
[Date "2022.11.02"]
[WhiteClock "0:00:15"]
[BlackClock "0:00:25"]

1. e4 {[%clk 0:03:00]}  c5 {[%clk 0:02:58]} 2. Nc3 {[%clk 0:03:00]}  e6 {[%clk 0:02:57]} 3. f4 {[%clk 0:02:59]}  d5 {[%clk 0:02:57]} 4. Nf3 {[%clk 0:02:59]}  Nc6 {[%clk 0:02:56]} 5. Bb5 {[%clk 0:02:58]}  Nf6 {[%clk 0:02:50]} 6. Bxc6+ {[%clk 0:02:57]}  bxc6 {[%clk 0:02:49]} 7. e5 {[%clk 0:02:57]}  Nd7 {[%clk 0:02:50]} 8. O-O {[%clk 0:02:57]}  Be7 {[%clk 0:02:47]} 9. d3 {[%clk 0:02:50]}  g6 {[%clk 0:02:45]} 10. b3 {[%clk 0:02:46]}  c4 {[%clk 0:02:33]} 11. bxc4 {[%clk 0:02:31]}  dxc4 {[%clk 0:02:33]} 12. d4 {[%clk 0:02:31]}  Bb7 {[%clk 0:02:28]} 13. Qe2 {[%clk 0:02:28]}  Nb6 {[%clk 0:02:27]} 14. Ne4 {[%clk 0:02:25]}  O-O {[%clk 0:02:10]} 15. Kh1 {[%clk 0:02:22]}  Qd5 {[%clk 0:01:59]} 16. Nc3 {[%clk 0:01:47]}  Qd7 {[%clk 0:01:50]} 17. Bd2 {[%clk 0:01:23]}  c5 {[%clk 0:01:49]} 18. dxc5 {[%clk 0:01:19]}  Bxc5 {[%clk 0:01:50]} 19. Rad1 {[%clk 0:01:18]}  Qc6 {[%clk 0:01:45]} 20. Be3 {[%clk 0:01:17]}  Bxe3 {[%clk 0:01:42]} 21. Qxe3 {[%clk 0:01:16]}  Nd5 {[%clk 0:01:42]} 22. Nxd5 {[%clk 0:01:14]}  exd5 {[%clk 0:01:42]} 23. Nd4 {[%clk 0:01:15]}  Qb6 {[%clk 0:01:40]} 24. f5 {[%clk 0:01:15]}  Bc8 {[%clk 0:01:27]} 25. f6 {[%clk 0:01:13]}  Kh8 {[%clk 0:01:11]} 26. Rf3 {[%clk 0:01:00]}  Bg4 {[%clk 0:01:05]} 27. Rdf1 {[%clk 0:00:53]}  Bxf3 {[%clk 0:01:05]} 28. Rxf3 {[%clk 0:00:53]}  Qb1+ {[%clk 0:01:03]} 29. Qg1 {[%clk 0:00:51]}  Qxg1+ {[%clk 0:01:03]} 30. Kxg1 {[%clk 0:00:51]}  Rfe8 {[%clk 0:01:02]} 31. Re3 {[%clk 0:00:34]}  Rab8 {[%clk 0:01:02]} 32. Kf2 {[%clk 0:00:28]}  Kg8 {[%clk 0:01:02]} 33. Nc6 {[%clk 0:00:26]}  Rb6 {[%clk 0:00:57]} 34. Ne7+ {[%clk 0:00:26]}  Kf8 {[%clk 0:00:56]} 35. Nxd5 {[%clk 0:00:27]}  Rb2 {[%clk 0:00:45]} 36. Nc7 {[%clk 0:00:27]}  Rc8 {[%clk 0:00:41]} 37. Nd5 {[%clk 0:00:16]}  Rxc2+ {[%clk 0:00:41]} 38. Kg3 {[%clk 0:00:16]}  Rd2 {[%clk 0:00:39]} 39. Ne7 {[%clk 0:00:15]}  Rc7 {[%clk 0:00:25]} 40. Nd5 {[%clk 0:00:15]}  Rxd5 {[%clk 0:00:25]} 0-1


[Site "https://www.chess.com"]

[Event "Titled Tuesday Blitz November 01 Late 2022"]
[White "chess50years"]
[Black "Estrada Nieto, Julian"]
[BlackFideId "5101018"]
[WhiteElo "2108"]
[BlackElo "2252"]
[Result "0-1"]
[Round "09"]
[TimeControl "180+1"]
[Date "2022.11.02"]
[WhiteClock "0:00:45"]
[BlackClock "0:00:39"]

1. d4 {[%clk 0:03:00]}  Nf6 {[%clk 0:02:58]} 2. c4 {[%clk 0:03:00]}  e6 {[%clk 0:02:58]} 3. Nc3 {[%clk 0:03:00]}  c5 {[%clk 0:02:58]} 4. e3 {[%clk 0:02:47]}  d5 {[%clk 0:02:54]} 5. cxd5 {[%clk 0:02:46]}  exd5 {[%clk 0:02:51]} 6. Nf3 {[%clk 0:02:44]}  c4 {[%clk 0:02:43]} 7. Ne5 {[%clk 0:02:40]}  Bd6 {[%clk 0:02:40]} 8. Be2 {[%clk 0:02:38]}  O-O {[%clk 0:02:40]} 9. O-O {[%clk 0:02:33]}  Nc6 {[%clk 0:02:39]} 10. f4 {[%clk 0:02:31]}  Bf5 {[%clk 0:02:18]} 11. Bd2 {[%clk 0:02:23]}  Ne4 {[%clk 0:02:12]} 12. Nxe4 {[%clk 0:02:20]}  Bxe4 {[%clk 0:02:12]} 13. Be1 {[%clk 0:02:14]}  f6 {[%clk 0:02:08]} 14. Nxc6 {[%clk 0:02:11]}  bxc6 {[%clk 0:02:08]} 15. b3 {[%clk 0:02:04]}  Ba3 {[%clk 0:01:52]} 16. bxc4 {[%clk 0:02:02]}  Bb2 {[%clk 0:01:49]} 17. Rb1 {[%clk 0:01:54]}  Bxb1 {[%clk 0:01:44]} 18. Qxb1 {[%clk 0:01:55]}  Rb8 {[%clk 0:01:40]} 19. Qc2 {[%clk 0:01:50]}  Qe7 {[%clk 0:01:31]} 20. cxd5 {[%clk 0:01:42]}  cxd5 {[%clk 0:01:28]} 21. Bf2 {[%clk 0:01:40]}  Rfc8 {[%clk 0:01:24]} 22. Qa4 {[%clk 0:01:35]}  Bc1 {[%clk 0:01:16]} 23. Bf3 {[%clk 0:01:24]}  Bxe3 {[%clk 0:01:13]} 24. Bxd5+ {[%clk 0:01:22]}  Kh8 {[%clk 0:01:13]} 25. Bxe3 {[%clk 0:01:17]}  Qxe3+ {[%clk 0:01:13]} 26. Kh1 {[%clk 0:01:17]}  Rc1 {[%clk 0:01:07]} 27. Bc4 {[%clk 0:00:58]}  Rxf1+ {[%clk 0:00:57]} 28. Bxf1 {[%clk 0:00:59]}  Qxf4 {[%clk 0:00:41]} 29. Qc4 {[%clk 0:00:51]}  Rd8 {[%clk 0:00:40]} 30. d5 {[%clk 0:00:48]}  Qxc4 {[%clk 0:00:40]} 31. Bxc4 {[%clk 0:00:48]}  Rc8 {[%clk 0:00:40]} 32. Bf1 {[%clk 0:00:45]}  Rc1 {[%clk 0:00:39]} 33. Kg1 {[%clk 0:00:45]}  Rd1 {[%clk 0:00:39]} 0-1


[Site "https://www.chess.com"]

[Event "Titled Tuesday Blitz November 01 Late 2022"]
[White "Aggelis, Nikolaos"]
[Black "Manolache, Marius"]
[WhiteFideId "4213220"]
[BlackFideId "1201530"]
[WhiteElo "2187"]
[BlackElo "2364"]
[Result "1/2-1/2"]
[Round "10"]
[TimeControl "180+1"]
[Date "2022.11.01"]
[WhiteClock "0:01:36"]
[BlackClock "0:01:01"]

1. d4 {[%clk 0:03:00]}  Nf6 {[%clk 0:02:55]} 2. Nf3 {[%clk 0:03:00]}  e6 {[%clk 0:02:55]} 3. g3 {[%clk 0:03:00]}  b6 {[%clk 0:02:55]} 4. Bg2 {[%clk 0:03:00]}  Bb7 {[%clk 0:02:55]} 5. O-O {[%clk 0:03:01]}  Be7 {[%clk 0:02:56]} 6. c4 {[%clk 0:02:59]}  O-O {[%clk 0:02:55]} 7. d5 {[%clk 0:03:00]}  a5 {[%clk 0:02:52]} 8. Nc3 {[%clk 0:02:58]}  Na6 {[%clk 0:02:51]} 9. e4 {[%clk 0:02:58]}  Bb4 {[%clk 0:02:45]} 10. Qc2 {[%clk 0:02:52]}  Bxc3 {[%clk 0:02:40]} 11. bxc3 {[%clk 0:02:52]}  Nc5 {[%clk 0:02:37]} 12. Re1 {[%clk 0:02:50]}  d6 {[%clk 0:02:34]} 13. Ba3 {[%clk 0:02:47]}  Re8 {[%clk 0:02:30]} 14. Bxc5 {[%clk 0:02:47]}  bxc5 {[%clk 0:02:23]} 15. Rab1 {[%clk 0:02:35]}  Rb8 {[%clk 0:02:04]} 16. Nd2 {[%clk 0:02:31]}  exd5 {[%clk 0:01:57]} 17. cxd5 {[%clk 0:02:28]}  Ba6 {[%clk 0:01:56]} 18. Qa4 {[%clk 0:02:07]}  Rxb1 {[%clk 0:01:54]} 19. Rxb1 {[%clk 0:02:08]}  Bd3 {[%clk 0:01:54]} 20. Rb7 {[%clk 0:02:02]}  h5 {[%clk 0:01:27]} 21. Qxa5 {[%clk 0:02:00]}  Nxe4 {[%clk 0:01:23]} 22. Nxe4 {[%clk 0:01:55]}  Bxe4 {[%clk 0:01:23]} 23. Qxc7 {[%clk 0:01:55]}  Qf6 {[%clk 0:01:19]} 24. Rb8 {[%clk 0:01:47]}  Qe5 {[%clk 0:01:04]} 25. Rxe8+ {[%clk 0:01:41]}  Qxe8 {[%clk 0:01:03]} 26. Qxd6 {[%clk 0:01:41]}  Bxg2 {[%clk 0:01:02]} 27. Kxg2 {[%clk 0:01:42]}  Qe4+ {[%clk 0:01:02]} 28. Kg1 {[%clk 0:01:38]}  Qe1+ {[%clk 0:01:01]} 29. Kg2 {[%clk 0:01:39]}  Qe4+ {[%clk 0:01:01]} 30. Kf1 {[%clk 0:01:37]}  Qd3+ {[%clk 0:01:01]} 31. Kg2 {[%clk 0:01:36]}  Qe4+ {[%clk 0:01:01]} 1/2-1/2


[Site "https://www.chess.com"]

[Event "Titled Tuesday Blitz November 01 Late 2022"]
[White "Aghasiyev, Kamal"]
[Black "Ter-Sahakyan, Samvel"]
[WhiteFideId "13402854"]
[BlackFideId "13302531"]
[WhiteElo "2341"]
[BlackElo "2604"]
[Result "0-1"]
[Round "10"]
[TimeControl "180+1"]
[Date "2022.11.01"]
[WhiteClock "0:00:01"]
[BlackClock "0:00:17"]

1. d4 {[%clk 0:02:53]}  Nf6 {[%clk 0:02:59]} 2. Bg5 {[%clk 0:02:53]}  d5 {[%clk 0:02:58]} 3. Bxf6 {[%clk 0:02:46]}  gxf6 {[%clk 0:02:57]} 4. e3 {[%clk 0:02:28]}  c5 {[%clk 0:02:57]} 5. dxc5 {[%clk 0:02:18]}  e6 {[%clk 0:02:42]} 6. Nf3 {[%clk 0:02:17]}  Bxc5 {[%clk 0:02:39]} 7. Be2 {[%clk 0:02:12]}  Nc6 {[%clk 0:02:38]} 8. O-O {[%clk 0:02:09]}  Ne5 {[%clk 0:02:27]} 9. c4 {[%clk 0:01:59]}  dxc4 {[%clk 0:02:19]} 10. Nbd2 {[%clk 0:01:27]}  c3 {[%clk 0:02:13]} 11. bxc3 {[%clk 0:01:21]}  Ng6 {[%clk 0:02:07]} 12. Qa4+ {[%clk 0:01:15]}  Kf8 {[%clk 0:02:01]} 13. Ne4 {[%clk 0:01:06]}  Be7 {[%clk 0:02:01]} 14. c4 {[%clk 0:00:52]}  f5 {[%clk 0:01:55]} 15. Nc3 {[%clk 0:00:48]}  a6 {[%clk 0:01:42]} 16. Rfd1 {[%clk 0:00:45]}  Qc7 {[%clk 0:01:42]} 17. Rac1 {[%clk 0:00:42]}  Kg7 {[%clk 0:01:40]} 18. g3 {[%clk 0:00:29]}  Rd8 {[%clk 0:01:39]} 19. h4 {[%clk 0:00:29]}  h6 {[%clk 0:01:35]} 20. h5 {[%clk 0:00:22]}  Nf8 {[%clk 0:01:34]} 21. Bf1 {[%clk 0:00:17]}  Nd7 {[%clk 0:01:31]} 22. Bg2 {[%clk 0:00:14]}  Nc5 {[%clk 0:01:23]} 23. Qc2 {[%clk 0:00:14]}  Bd7 {[%clk 0:01:23]} 24. Nd4 {[%clk 0:00:11]}  Bf6 {[%clk 0:01:21]} 25. g4 {[%clk 0:00:07]}  fxg4 {[%clk 0:01:09]} 26. Ne4 {[%clk 0:00:07]}  Be5 {[%clk 0:01:09]} 27. Nxc5 {[%clk 0:00:04]}  Qxc5 {[%clk 0:01:10]} 28. Bxb7 {[%clk 0:00:03]}  Rab8 {[%clk 0:01:07]} 29. Bg2 {[%clk 0:00:03]}  Qe7 {[%clk 0:00:54]} 30. Nb3 {[%clk 0:00:03]}  Qg5 {[%clk 0:00:46]} 31. c5 {[%clk 0:00:03]}  Bb5 {[%clk 0:00:44]} 32. Nd4 {[%clk 0:00:03]}  Qxh5 {[%clk 0:00:28]} 33. Nxb5 {[%clk 0:00:03]}  axb5 {[%clk 0:00:28]} 34. Rxd8 {[%clk 0:00:02]}  Rxd8 {[%clk 0:00:28]} 35. c6 {[%clk 0:00:02]}  g3 {[%clk 0:00:19]} 36. f4 {[%clk 0:00:01]}  Bc7 {[%clk 0:00:17]} 0-1


[Site "https://www.chess.com"]

[Event "Titled Tuesday Blitz November 01 Late 2022"]
[White "Ambartsumova, Karina"]
[Black "Rangel, Daniel"]
[WhiteFideId "4166299"]
[BlackFideId "2124475"]
[WhiteElo "2299"]
[BlackElo "2225"]
[Result "1/2-1/2"]
[Round "10"]
[TimeControl "180+1"]
[Date "2022.11.02"]
[WhiteClock "0:00:08"]
[BlackClock "0:00:10"]

1. d4 {[%clk 0:03:00]}  Nf6 {[%clk 0:02:59]} 2. Nf3 {[%clk 0:03:00]}  b6 {[%clk 0:02:59]} 3. g3 {[%clk 0:03:00]}  Bb7 {[%clk 0:03:00]} 4. Bg2 {[%clk 0:03:00]}  c5 {[%clk 0:02:59]} 5. c4 {[%clk 0:02:54]}  cxd4 {[%clk 0:02:58]} 6. Qxd4 {[%clk 0:02:54]}  e6 {[%clk 0:02:56]} 7. O-O {[%clk 0:02:53]}  Bc5 {[%clk 0:02:55]} 8. Qf4 {[%clk 0:02:46]}  a6 {[%clk 0:02:55]} 9. Nc3 {[%clk 0:02:43]}  O-O {[%clk 0:02:53]} 10. a3 {[%clk 0:02:38]}  Be7 {[%clk 0:02:43]} 11. b4 {[%clk 0:02:26]}  d5 {[%clk 0:02:32]} 12. Bb2 {[%clk 0:02:07]}  Nbd7 {[%clk 0:02:25]} 13. cxd5 {[%clk 0:01:54]}  Nxd5 {[%clk 0:02:23]} 14. Nxd5 {[%clk 0:01:53]}  Bxd5 {[%clk 0:02:24]} 15. e4 {[%clk 0:01:51]}  Bb7 {[%clk 0:02:21]} 16. Rfd1 {[%clk 0:01:51]}  Qe8 {[%clk 0:02:18]} 17. Qc7 {[%clk 0:01:43]}  Bc8 {[%clk 0:01:54]} 18. e5 {[%clk 0:01:39]}  Bd8 {[%clk 0:01:39]} 19. Qc6 {[%clk 0:01:25]}  Rb8 {[%clk 0:01:35]} 20. Rac1 {[%clk 0:01:23]}  b5 {[%clk 0:01:24]} 21. h4 {[%clk 0:01:12]}  Nb6 {[%clk 0:01:19]} 22. Nd4 {[%clk 0:00:32]}  Nc4 {[%clk 0:00:59]} 23. Qxe8 {[%clk 0:00:30]}  Rxe8 {[%clk 0:00:58]} 24. Ba1 {[%clk 0:00:27]}  Bb7 {[%clk 0:00:47]} 25. Nc6 {[%clk 0:00:23]}  Bxc6 {[%clk 0:00:45]} 26. Bxc6 {[%clk 0:00:24]}  Rf8 {[%clk 0:00:44]} 27. a4 {[%clk 0:00:24]}  Be7 {[%clk 0:00:30]} 28. axb5 {[%clk 0:00:17]}  axb5 {[%clk 0:00:31]} 29. Bc3 {[%clk 0:00:08]}  Rfc8 {[%clk 0:00:26]} 30. Bf3 {[%clk 0:00:09]}  g6 {[%clk 0:00:21]} 31. Kg2 {[%clk 0:00:09]}  Kg7 {[%clk 0:00:20]} 32. Be4 {[%clk 0:00:08]}  h5 {[%clk 0:00:19]} 33. Re1 {[%clk 0:00:08]}  Nb6 {[%clk 0:00:16]} 34. Bd2 {[%clk 0:00:07]}  Nc4 {[%clk 0:00:14]} 35. Bc3 {[%clk 0:00:07]}  Nb6 {[%clk 0:00:15]} 36. Bd2 {[%clk 0:00:07]}  Nd7 {[%clk 0:00:13]} 37. f4 {[%clk 0:00:06]}  Nb6 {[%clk 0:00:13]} 38. Rc6 {[%clk 0:00:04]}  Nc4 {[%clk 0:00:12]} 39. Bc3 {[%clk 0:00:04]}  Rxc6 {[%clk 0:00:12]} 40. Bxc6 {[%clk 0:00:05]}  Rb6 {[%clk 0:00:11]} 41. Be4 {[%clk 0:00:04]}  Ra6 {[%clk 0:00:11]} 42. Ra1 {[%clk 0:00:03]}  Rxa1 {[%clk 0:00:08]} 43. Bxa1 {[%clk 0:00:04]}  Bxb4 {[%clk 0:00:09]} 44. Bc6 {[%clk 0:00:05]}  Na3 {[%clk 0:00:08]} 45. Bb2 {[%clk 0:00:05]}  Be7 {[%clk 0:00:08]} 46. Bxa3 {[%clk 0:00:05]}  Bxa3 {[%clk 0:00:08]} 47. Bxb5 {[%clk 0:00:05]}  Be7 {[%clk 0:00:08]} 48. Kf3 {[%clk 0:00:06]}  Bf8 {[%clk 0:00:08]} 49. Bd3 {[%clk 0:00:07]}  Be7 {[%clk 0:00:08]} 50. Be4 {[%clk 0:00:07]}  Bf8 {[%clk 0:00:09]} 51. Bd3 {[%clk 0:00:08]}  Be7 {[%clk 0:00:09]} 52. Be2 {[%clk 0:00:08]}  Bf8 {[%clk 0:00:10]} 53. Bd3 {[%clk 0:00:08]} 1/2-1/2


[Site "https://www.chess.com"]